Workbook

Sheet (38)
A1: MATRICULE | B1: NOM | C1: PRENOM | D1: FONCTION | E1: SALAIRE DE BASE | F1: PANIER | G1: TRANSPORT | H1: SALAIRE DE POSTE | I1: RETENUE SS | J1: SALAIRE IMPOSABLE | K1: IRG | L1: Abattement | M1: IRG retenu | N1: SALAIRE NET | O1: augmentation | P1: nouveau salaire | Q1: %IRG | R1: Calcul macro | U1: Table impôts | Y1: simplif IRG | Z1: equiv() | AA1: Sal imposable 1 | AB1: Sal net | AD1: Sal net | AG1: Formule matricielle
A2: 00007 | B2: SALAIER 1 | C2: NABIL | D2: SUPPORT MERCHANDISER | E2: 39401.1 | F2: 6000 | G2: 6000 | H2: =+E2 -> 39401.1 | I2: =ROUND(H2*0.09,2) -> 3546.1 | J2: =+H2-I2+F2+G2 -> 47855 | K2: =VLOOKUP(ROUNDDOWN(J2/Q2,-1),$U$2:$W$5,2,TRUE)*(ROUNDDOWN(J2/Q2,-1)-VLOOKUP(ROUNDDOWN(J2/Q2,-1),$U$2:$W$5,1,TRUE))+VLOOKUP(ROUNDDOWN(J2/Q2,-1),$U$2:$W$5,3,TRUE) -> 9355 | L2: =IF(ROUNDDOWN(J2/Q2,-1)*40%<1000,1000,IF(ROUNDDOWN(J2/Q2,-1)*40%>1500,1500, ROUNDDOWN(J2/Q2,-1)*40%)) -> 1500 | M2: =K2-L2 -> 7855 | N2: =H2-I2-K2+F2+G2+L2 -> 40000 | O2: 5000 | P2: =N2+O2 -> 45000 | Q2: 1 | R2: =Sal_base(P2,F2,G2,Q2) -> 47249.45 | U2: 0 | V2: 0 | Y2: =VLOOKUP(J2,$U$2:$W$5,2,TRUE)*(ROUNDDOWN((J2/Q2),-1)-VLOOKUP(J2,$U$2:$W$5,1,TRUE))+VLOOKUP(J2,$U$2:$W$5,3,TRUE) -> 9355 | Z2: =MATCH(P2,$U$2:$U$5-$W$2:$W$5,1) -> 3 | AA2: =ROUND((P2-INDEX($V$2:$V$5,Z2)*INDEX($U$2:$U$5,Z2)+INDEX($W$2:$W$5,Z2))/(1-INDEX($V$2:$V$5,Z2)),2) -> 57142.86 | AB2: =ROUND((P2+VLOOKUP(AA2,$U$2:$W$5,2,TRUE)*(ROUNDDOWN((AA2/Q2),-1)-VLOOKUP(AA2,$U$2:$W$5,1,TRUE))+VLOOKUP(AA2,$U$2:$W$5,3,TRUE)-G2-F2)/0.91,2) -> 49606.59 | AD2: =ROUND((P2+VLOOKUP(ROUND((P2-INDEX($V$2:$V$5,MATCH(P2,$U$2:$U$5-$W$2:$W$5,1))*INDEX($U$2:$U$5,MATCH(P2,$U$2:$U$5-$W$2:$W$5,1))+INDEX($W$2:$W$5,MATCH(P2,$U$2:$U$5-$W$2:$W$5,1)))/(1-INDEX($V$2:$V$5,MATCH(P2,$U$2:$U$5-$W$2:$W$5,1))),2),$U$2:$W$5,2,TRUE)*(ROUNDDOWN((ROUND((P2-INDEX($V$2:$V$5,MATCH(P2,$U$2:$U$5-$W$2:$W$5,1))*INDEX($U$2:$U$5,MATCH(P2,$U$2:$U$5-$W$2:$W$5,1))+INDEX($W$2:$W$5,MATCH(P2,$U$2:$U$5-$W$2:$W$5,1)))/(1-INDEX($V$2:$V$5,MATCH(P2,$U$2:$U$5-$W$2:$W$5,1))),2)/Q2),-1)-VLOOKUP(ROUND((P2-INDEX($V$2:$V$5,MATCH(P2,$U$2:$U$5-$W$2:$W$5,1))*INDEX($U$2:$U$5,MATCH(P2,$U$2:$U$5-$W$2:$W$5,1))+INDEX($W$2:$W$5,MATCH(P2,$U$2:$U$5-$W$2:$W$5,1)))/(1-INDEX($V$2:$V$5,MATCH(P2,$U$2:$U$5-$W$2:$W$5,1))),2),$U$2:$W$5,1,TRUE))+VLOOKUP(ROUND((P2-INDEX($V$2:$V$5,MATCH(P2,$U$2:$U$5-$W$2:$W$5,1))*INDEX($U$2:$U$5,MATCH(P2,$U$2:$U$5-$W$2:$W$5,1))+INDEX($W$2:$W$5,MATCH(P2,$U$2:$U$5-$W$2:$W$5,1)))/(1-INDEX($V$2:$V$5,MATCH(P2,$U$2:$U$5-$W$2:$W$5,1))),2),$U$2:$W$5,3,TRUE)-G2-F2-L2)/0.91,2) -> 47958.24 | AE2: =MAX(1000,MIN(1500,J2*40%)) -> 1500 | AF2: =H2 -ROUND(H2*0.09,2) -(VLOOKUP(H2-ROUND(H2*0.09,2)+F2+G2,$U$2:$W$5,2,TRUE)*(ROUNDDOWN((H2-ROUND(H2*0.09,2)+F2+G2)/Q2,-1)-VLOOKUP(H2-ROUND(H2*0.09,2)+F2+G2,$U$2:$W$5,1,TRUE))+VLOOKUP(H2-ROUND(H2*0.09,2)+F2+G2,$U$2:$W$5,3,TRUE)) +F2+G2 +IF((H2-(ROUND(H2*0.09,2))+F2+G2)*40%<1000,1000,IF((H2-(ROUND(H2*0.09,2))+F2+G2)*40%>1500,1500, (H2-(ROUND(H2*0.09,2))+F2+G2)*40%)) -> 40000 | AG2: =MIN(SI((H2+LIGNE(INDIRECT("1:1000000"))/100) -ARRONDI((H2+LIGNE(INDIRECT("1:1000000"))/100)*0,09;2) -(RECHERCHEV((H2+LIGNE(INDIRECT("1:1000000"))/100)-ARRONDI((H2+LIGNE(INDIRECT("1:1000000"))/100)*0,09;2)+F2+G2;$Y$2:$AA$5;2;VRAI)*(ARRONDI.INF(((H2+LIGNE(INDIRECT("1:1000000"))/100)-ARRONDI((H2+LIGNE(INDIRECT("1:1000000"))/100)*0,09;2)+F2+G2)/Q2;-1)-RECHERCHEV((H2+LIGNE(INDIRECT("1:1000000"))/100)-ARRONDI((H2+LIGNE(INDIRECT("1:1000000"))/100)*0,09;2)+F2+G2;$Y$2:$AA$5;1;VRAI))+RECHERCHEV((H2+LIGNE(INDIRECT("1:1000000"))/100)-ARRONDI((H2+LIGNE(INDIRECT("1:1000000"))/100)*0,09;2)+F2+G2;$Y$2:$AA$5;3;VRAI)) +F2+G2 +SI(ARRONDI(((H2+LIGNE(INDIRECT("1:1000000"))/100)*(1-0,09)+F2+G2)*40%;2)<1000;1000;SI(ARRONDI(((H2+LIGNE(INDIRECT("1:1000000"))/100)*(1-0,09)+F2+G2)*40%;2)>1500;1500; ARRONDI(((H2+LIGNE(INDIRECT("1:1000000"))/100)*(1-0,09)+F2+G2)*40%;2)))>=P2;H2+LIGNE(INDIRECT("1:1000000"))/100;9^9))
A3: 00033 | B3: SALAIER 2 | C3: MOHAMED AMINE | D3: Responsable Marketing | E3: 181735.71 | F3: 23078 | G3: 23078 | H3: 181735.71 | I3: 16356.21 | J3: 211535.5 | K3: =VLOOKUP(ROUNDDOWN(J3/Q3,-1),$U$2:$W$5,2,TRUE)*(ROUNDDOWN(J3/Q3,-1)-VLOOKUP(ROUNDDOWN(J3/Q3,-1),$U$2:$W$5,1,TRUE))+VLOOKUP(ROUNDDOWN(J3/Q3,-1),$U$2:$W$5,3,TRUE) -> 63035.5 | L3: =IF(ROUNDDOWN(J3/Q3,-1)*40%<1000,1000,IF(ROUNDDOWN(J3/Q3,-1)*40%>1500,1500, ROUNDDOWN(J3/Q3,-1)*40%)) -> 1500 | M3: 61535.5 | N3: 150000 | O3: 7000 | P3: =N3+O3 -> 157000 | Q3: 1 | R3: =Sal_base(P3,F3,G3,Q3) -> 193570.33 | U3: 10000 | V3: 0.2 | W3: =V2*(U3-U2) -> 0 | Y3: =VLOOKUP(J3,$U$2:$W$5,2,TRUE)*(ROUNDDOWN((J3/Q3),-1)-VLOOKUP(J3,$U$2:$W$5,1,TRUE))+VLOOKUP(J3,$U$2:$W$5,3,TRUE) -> 63035.5 | Z3: =MATCH(P3,$U$2:$U$5-$W$2:$W$5,1) -> 4 | AA3: =ROUND((P3-INDEX($V$2:$V$5,Z3)*INDEX($U$2:$U$5,Z3)+INDEX($W$2:$W$5,Z3))/(1-INDEX($V$2:$V$5,Z3)),2) -> 224615.38 | AB3: =ROUND((P3+VLOOKUP(AA3,$U$2:$W$5,2,TRUE)*(ROUNDDOWN((AA3/Q3),-1)-VLOOKUP(AA3,$U$2:$W$5,1,TRUE))+VLOOKUP(AA3,$U$2:$W$5,3,TRUE)-G3-F3)/0.91,2) -> 196107.14 | AD3: =ROUND((P3+VLOOKUP(ROUND((P3-INDEX($V$2:$V$5,MATCH(P3,$U$2:$U$5-$W$2:$W$5,1))*INDEX($U$2:$U$5,MATCH(P3,$U$2:$U$5-$W$2:$W$5,1))+INDEX($W$2:$W$5,MATCH(P3,$U$2:$U$5-$W$2:$W$5,1)))/(1-INDEX($V$2:$V$5,MATCH(P3,$U$2:$U$5-$W$2:$W$5,1))),2),$U$2:$W$5,2,TRUE)*(ROUNDDOWN((ROUND((P3-INDEX($V$2:$V$5,MATCH(P3,$U$2:$U$5-$W$2:$W$5,1))*INDEX($U$2:$U$5,MATCH(P3,$U$2:$U$5-$W$2:$W$5,1))+INDEX($W$2:$W$5,MATCH(P3,$U$2:$U$5-$W$2:$W$5,1)))/(1-INDEX($V$2:$V$5,MATCH(P3,$U$2:$U$5-$W$2:$W$5,1))),2)/Q3),-1)-VLOOKUP(ROUND((P3-INDEX($V$2:$V$5,MATCH(P3,$U$2:$U$5-$W$2:$W$5,1))*INDEX($U$2:$U$5,MATCH(P3,$U$2:$U$5-$W$2:$W$5,1))+INDEX($W$2:$W$5,MATCH(P3,$U$2:$U$5-$W$2:$W$5,1)))/(1-INDEX($V$2:$V$5,MATCH(P3,$U$2:$U$5-$W$2:$W$5,1))),2),$U$2:$W$5,1,TRUE))+VLOOKUP(ROUND((P3-INDEX($V$2:$V$5,MATCH(P3,$U$2:$U$5-$W$2:$W$5,1))*INDEX($U$2:$U$5,MATCH(P3,$U$2:$U$5-$W$2:$W$5,1))+INDEX($W$2:$W$5,MATCH(P3,$U$2:$U$5-$W$2:$W$5,1)))/(1-INDEX($V$2:$V$5,MATCH(P3,$U$2:$U$5-$W$2:$W$5,1))),2),$U$2:$W$5,3,TRUE)-G3-F3)/0.91,2) -> 196107.14
A4: 00035 | B4: SALAIER 3 | C4: NESRINE SOUHILA | D4: Assistante SAV | E4: 39401.1 | F4: 6000 | G4: 6000 | H4: 39401.1 | I4: 3546.1 | J4: 47855 | K4: 9355 | L4: 1500 | M4: 7855 | N4: 40000 | O4: 4500 | P4: 44500 | Q4: 1 | R4: 46465.93 | U4: 30000 | V4: 0.3 | W4: =W3+V3*(U4-U3) -> 4000 | Y4: =VLOOKUP(J4,$U$2:$W$5,2,TRUE)*(ROUNDDOWN((J4/Q4),-1)-VLOOKUP(J4,$U$2:$W$5,1,TRUE))+VLOOKUP(J4,$U$2:$W$5,3,TRUE) -> 9355 | Z4: =MATCH(P4,$U$2:$U$5-$W$2:$W$5,1) -> 3 | AA4: =ROUND((P4-INDEX($V$2:$V$5,Z4)*INDEX($U$2:$U$5,Z4)+INDEX($W$2:$W$5,Z4))/(1-INDEX($V$2:$V$5,Z4)),2) -> 56428.57 | AB4: =ROUND((P4+VLOOKUP(AA4,$U$2:$W$5,2,TRUE)*(ROUNDDOWN((AA4/Q4),-1)-VLOOKUP(AA4,$U$2:$W$5,1,TRUE))+VLOOKUP(AA4,$U$2:$W$5,3,TRUE)-G4-F4)/0.91,2) -> 48819.78 | AD4: =ROUND((P4+VLOOKUP(ROUND((P4-INDEX($V$2:$V$5,MATCH(P4,$U$2:$U$5-$W$2:$W$5,1))*INDEX($U$2:$U$5,MATCH(P4,$U$2:$U$5-$W$2:$W$5,1))+INDEX($W$2:$W$5,MATCH(P4,$U$2:$U$5-$W$2:$W$5,1)))/(1-INDEX($V$2:$V$5,MATCH(P4,$U$2:$U$5-$W$2:$W$5,1))),2),$U$2:$W$5,2,TRUE)*(ROUNDDOWN((ROUND((P4-INDEX($V$2:$V$5,MATCH(P4,$U$2:$U$5-$W$2:$W$5,1))*INDEX($U$2:$U$5,MATCH(P4,$U$2:$U$5-$W$2:$W$5,1))+INDEX($W$2:$W$5,MATCH(P4,$U$2:$U$5-$W$2:$W$5,1)))/(1-INDEX($V$2:$V$5,MATCH(P4,$U$2:$U$5-$W$2:$W$5,1))),2)/Q4),-1)-VLOOKUP(ROUND((P4-INDEX($V$2:$V$5,MATCH(P4,$U$2:$U$5-$W$2:$W$5,1))*INDEX($U$2:$U$5,MATCH(P4,$U$2:$U$5-$W$2:$W$5,1))+INDEX($W$2:$W$5,MATCH(P4,$U$2:$U$5-$W$2:$W$5,1)))/(1-INDEX($V$2:$V$5,MATCH(P4,$U$2:$U$5-$W$2:$W$5,1))),2),$U$2:$W$5,1,TRUE))+VLOOKUP(ROUND((P4-INDEX($V$2:$V$5,MATCH(P4,$U$2:$U$5-$W$2:$W$5,1))*INDEX($U$2:$U$5,MATCH(P4,$U$2:$U$5-$W$2:$W$5,1))+INDEX($W$2:$W$5,MATCH(P4,$U$2:$U$5-$W$2:$W$5,1)))/(1-INDEX($V$2:$V$5,MATCH(P4,$U$2:$U$5-$W$2:$W$5,1))),2),$U$2:$W$5,3,TRUE)-G4-F4)/0.91,2) -> 48819.78
A5: 00037 | B5: SALAIER 4 | C5: ADEL AMAR | D5: Magasinier | E5: 39401.1 | F5: 6000 | G5: 6000 | H5: 39401.1 | I5: 3546.1 | J5: 47855 | K5: 9355 | L5: 1500 | M5: 7855 | N5: 40000 | O5: 3000 | P5: 43000 | Q5: 1 | R5: 44108.79 | U5: 120000 | V5: 0.35 | W5: =W4+V4*(U5-U4) -> 31000 | Y5: =VLOOKUP(J5,$U$2:$W$5,2,TRUE)*(ROUNDDOWN((J5/Q5),-1)-VLOOKUP(J5,$U$2:$W$5,1,TRUE))+VLOOKUP(J5,$U$2:$W$5,3,TRUE) -> 9355 | Z5: =MATCH(P5,$U$2:$U$5-$W$2:$W$5,1) -> 3 | AA5: =ROUND((P5-INDEX($V$2:$V$5,Z5)*INDEX($U$2:$U$5,Z5)+INDEX($W$2:$W$5,Z5))/(1-INDEX($V$2:$V$5,Z5)),2) -> 54285.71 | AB5: =ROUND((P5+VLOOKUP(AA5,$U$2:$W$5,2,TRUE)*(ROUNDDOWN((AA5/Q5),-1)-VLOOKUP(AA5,$U$2:$W$5,1,TRUE))+VLOOKUP(AA5,$U$2:$W$5,3,TRUE)-G5-F5)/0.91,2) -> 46465.93 | AD5: =ROUND((P5+VLOOKUP(ROUND((P5-INDEX($V$2:$V$5,MATCH(P5,$U$2:$U$5-$W$2:$W$5,1))*INDEX($U$2:$U$5,MATCH(P5,$U$2:$U$5-$W$2:$W$5,1))+INDEX($W$2:$W$5,MATCH(P5,$U$2:$U$5-$W$2:$W$5,1)))/(1-INDEX($V$2:$V$5,MATCH(P5,$U$2:$U$5-$W$2:$W$5,1))),2),$U$2:$W$5,2,TRUE)*(ROUNDDOWN((ROUND((P5-INDEX($V$2:$V$5,MATCH(P5,$U$2:$U$5-$W$2:$W$5,1))*INDEX($U$2:$U$5,MATCH(P5,$U$2:$U$5-$W$2:$W$5,1))+INDEX($W$2:$W$5,MATCH(P5,$U$2:$U$5-$W$2:$W$5,1)))/(1-INDEX($V$2:$V$5,MATCH(P5,$U$2:$U$5-$W$2:$W$5,1))),2)/Q5),-1)-VLOOKUP(ROUND((P5-INDEX($V$2:$V$5,MATCH(P5,$U$2:$U$5-$W$2:$W$5,1))*INDEX($U$2:$U$5,MATCH(P5,$U$2:$U$5-$W$2:$W$5,1))+INDEX($W$2:$W$5,MATCH(P5,$U$2:$U$5-$W$2:$W$5,1)))/(1-INDEX($V$2:$V$5,MATCH(P5,$U$2:$U$5-$W$2:$W$5,1))),2),$U$2:$W$5,1,TRUE))+VLOOKUP(ROUND((P5-INDEX($V$2:$V$5,MATCH(P5,$U$2:$U$5-$W$2:$W$5,1))*INDEX($U$2:$U$5,MATCH(P5,$U$2:$U$5-$W$2:$W$5,1))+INDEX($W$2:$W$5,MATCH(P5,$U$2:$U$5-$W$2:$W$5,1)))/(1-INDEX($V$2:$V$5,MATCH(P5,$U$2:$U$5-$W$2:$W$5,1))),2),$U$2:$W$5,3,TRUE)-G5-F5)/0.91,2) -> 46465.93 | AF5: =H2-(ROUND(H2*0.09,2))+F2+G2 -> 47855
A6: 00041 | B6: SALAIER 5 | C6: AHMED | D6: Coordinateur De Projet | E6: 251052.2 | F6: 30000 | G6: 30000 | H6: 251052.2 | I6: 22594.7 | J6: 288457.5 | K6: 89957.5 | L6: 1500 | M6: 88457.5 | N6: 200000 | O6: 4400 | P6: 204400 | Q6: 1 | R6: 258491.21 | Y6: =VLOOKUP(J6,$U$2:$W$5,2,TRUE)*(ROUNDDOWN((J6/Q6),-1)-VLOOKUP(J6,$U$2:$W$5,1,TRUE))+VLOOKUP(J6,$U$2:$W$5,3,TRUE) -> 89957.5 | Z6: =MATCH(P6,$U$2:$U$5-$W$2:$W$5,1) -> 4 | AA6: =ROUND((P6-INDEX($V$2:$V$5,Z6)*INDEX($U$2:$U$5,Z6)+INDEX($W$2:$W$5,Z6))/(1-INDEX($V$2:$V$5,Z6)),2) -> 297538.46 | AB6: =ROUND((P6+VLOOKUP(AA6,$U$2:$W$5,2,TRUE)*(ROUNDDOWN((AA6/Q6),-1)-VLOOKUP(AA6,$U$2:$W$5,1,TRUE))+VLOOKUP(AA6,$U$2:$W$5,3,TRUE)-G6-F6)/0.91,2) -> 261028.02 | AD6: =ROUND((P6+VLOOKUP(ROUND((P6-INDEX($V$2:$V$5,MATCH(P6,$U$2:$U$5-$W$2:$W$5,1))*INDEX($U$2:$U$5,MATCH(P6,$U$2:$U$5-$W$2:$W$5,1))+INDEX($W$2:$W$5,MATCH(P6,$U$2:$U$5-$W$2:$W$5,1)))/(1-INDEX($V$2:$V$5,MATCH(P6,$U$2:$U$5-$W$2:$W$5,1))),2),$U$2:$W$5,2,TRUE)*(ROUNDDOWN((ROUND((P6-INDEX($V$2:$V$5,MATCH(P6,$U$2:$U$5-$W$2:$W$5,1))*INDEX($U$2:$U$5,MATCH(P6,$U$2:$U$5-$W$2:$W$5,1))+INDEX($W$2:$W$5,MATCH(P6,$U$2:$U$5-$W$2:$W$5,1)))/(1-INDEX($V$2:$V$5,MATCH(P6,$U$2:$U$5-$W$2:$W$5,1))),2)/Q6),-1)-VLOOKUP(ROUND((P6-INDEX($V$2:$V$5,MATCH(P6,$U$2:$U$5-$W$2:$W$5,1))*INDEX($U$2:$U$5,MATCH(P6,$U$2:$U$5-$W$2:$W$5,1))+INDEX($W$2:$W$5,MATCH(P6,$U$2:$U$5-$W$2:$W$5,1)))/(1-INDEX($V$2:$V$5,MATCH(P6,$U$2:$U$5-$W$2:$W$5,1))),2),$U$2:$W$5,1,TRUE))+VLOOKUP(ROUND((P6-INDEX($V$2:$V$5,MATCH(P6,$U$2:$U$5-$W$2:$W$5,1))*INDEX($U$2:$U$5,MATCH(P6,$U$2:$U$5-$W$2:$W$5,1))+INDEX($W$2:$W$5,MATCH(P6,$U$2:$U$5-$W$2:$W$5,1)))/(1-INDEX($V$2:$V$5,MATCH(P6,$U$2:$U$5-$W$2:$W$5,1))),2),$U$2:$W$5,3,TRUE)-G6-F6)/0.91,2) -> 261028.02
A7: 00048 | B7: SALAIER 6 | C7: SALMA | D7: Assistante de direction | E7: 36104.4 | F7: 7500 | G7: 7500 | H7: 36104.4 | I7: 3249.4 | J7: 47855 | K7: 9355 | L7: 1500 | M7: 7855 | N7: 40000 | O7: 5000 | P7: 45000 | Q7: 1 | R7: 43952.75 | Y7: =VLOOKUP(J7,$U$2:$W$5,2,TRUE)*(ROUNDDOWN((J7/Q7),-1)-VLOOKUP(J7,$U$2:$W$5,1,TRUE))+VLOOKUP(J7,$U$2:$W$5,3,TRUE) -> 9355 | Z7: =MATCH(P7,$U$2:$U$5-$W$2:$W$5,1) -> 3 | AA7: =ROUND((P7-INDEX($V$2:$V$5,Z7)*INDEX($U$2:$U$5,Z7)+INDEX($W$2:$W$5,Z7))/(1-INDEX($V$2:$V$5,Z7)),2) -> 57142.86 | AB7: =ROUND((P7+VLOOKUP(AA7,$U$2:$W$5,2,TRUE)*(ROUNDDOWN((AA7/Q7),-1)-VLOOKUP(AA7,$U$2:$W$5,1,TRUE))+VLOOKUP(AA7,$U$2:$W$5,3,TRUE)-G7-F7)/0.91,2) -> 46309.89 | AD7: =ROUND((P7+VLOOKUP(ROUND((P7-INDEX($V$2:$V$5,MATCH(P7,$U$2:$U$5-$W$2:$W$5,1))*INDEX($U$2:$U$5,MATCH(P7,$U$2:$U$5-$W$2:$W$5,1))+INDEX($W$2:$W$5,MATCH(P7,$U$2:$U$5-$W$2:$W$5,1)))/(1-INDEX($V$2:$V$5,MATCH(P7,$U$2:$U$5-$W$2:$W$5,1))),2),$U$2:$W$5,2,TRUE)*(ROUNDDOWN((ROUND((P7-INDEX($V$2:$V$5,MATCH(P7,$U$2:$U$5-$W$2:$W$5,1))*INDEX($U$2:$U$5,MATCH(P7,$U$2:$U$5-$W$2:$W$5,1))+INDEX($W$2:$W$5,MATCH(P7,$U$2:$U$5-$W$2:$W$5,1)))/(1-INDEX($V$2:$V$5,MATCH(P7,$U$2:$U$5-$W$2:$W$5,1))),2)/Q7),-1)-VLOOKUP(ROUND((P7-INDEX($V$2:$V$5,MATCH(P7,$U$2:$U$5-$W$2:$W$5,1))*INDEX($U$2:$U$5,MATCH(P7,$U$2:$U$5-$W$2:$W$5,1))+INDEX($W$2:$W$5,MATCH(P7,$U$2:$U$5-$W$2:$W$5,1)))/(1-INDEX($V$2:$V$5,MATCH(P7,$U$2:$U$5-$W$2:$W$5,1))),2),$U$2:$W$5,1,TRUE))+VLOOKUP(ROUND((P7-INDEX($V$2:$V$5,MATCH(P7,$U$2:$U$5-$W$2:$W$5,1))*INDEX($U$2:$U$5,MATCH(P7,$U$2:$U$5-$W$2:$W$5,1))+INDEX($W$2:$W$5,MATCH(P7,$U$2:$U$5-$W$2:$W$5,1)))/(1-INDEX($V$2:$V$5,MATCH(P7,$U$2:$U$5-$W$2:$W$5,1))),2),$U$2:$W$5,3,TRUE)-G7-F7)/0.91,2) -> 46309.89
D9: SUPPORT MERCHANDISER | E9: =R2 -> 47249.45 | F9: 6000 | G9: 6000 | H9: =E9 -> 47249.45 | I9: =ROUND(H9*0.09,2) -> 4252.45 | J9: =+H9-I9+F9+G9 -> 54997 | K9: =VLOOKUP(ROUNDDOWN(J9/Q9,-1),$U$2:$W$5,2,TRUE)*(ROUNDDOWN(J9/Q9,-1)-VLOOKUP(ROUNDDOWN(J9/Q9,-1),$U$2:$W$5,1,TRUE))+VLOOKUP(ROUNDDOWN(J9/Q9,-1),$U$2:$W$5,3,TRUE) -> 11497 | L9: =IF(ROUNDDOWN(J9/Q9,-1)*40%<1000,1000,IF(ROUNDDOWN(J9/Q9,-1)*40%>1500,1500, ROUNDDOWN(J9/Q9,-1)*40%)) -> 1500 | M9: =K9-L9 -> 9997 | N9: =H9-I9-K9+F9+G9+L9 -> 45000 | O9: Contrôle du résultat macro | Q9: 1
D10: Responsable Marketing | E10: =R3 -> 193570.33 | F10: 23078 | G10: 23078 | H10: =E10 -> 193570.33 | I10: 17421.33 | J10: 222305 | K10: =VLOOKUP(ROUNDDOWN(J10/Q10,-1),$U$2:$W$5,2,TRUE)*(ROUNDDOWN(J10/Q10,-1)-VLOOKUP(ROUNDDOWN(J10/Q10,-1),$U$2:$W$5,1,TRUE))+VLOOKUP(ROUNDDOWN(J10/Q10,-1),$U$2:$W$5,3,TRUE) -> 66805 | L10: =IF(ROUNDDOWN(J10/Q10,-1)*40%<1000,1000,IF(ROUNDDOWN(J10/Q10,-1)*40%>1500,1500, ROUNDDOWN(J10/Q10,-1)*40%)) -> 1500 | M10: 65305 | N10: 157000 | Q10: 1
D11: Assistante SAV | E11: =R4 -> 46465.93 | F11: 6000 | G11: 6000 | H11: 46465.93 | I11: 4181.93 | J11: 54284 | K11: 11284 | L11: 1500 | M11: 9784 | N11: 44500 | Q11: 1
D12: Magasinier | E12: =R5 -> 44108.79 | F12: 6000 | G12: 6000 | H12: 44108.79 | I12: 3969.79 | J12: 52139 | K12: 10639 | L12: 1500 | M12: 9139 | N12: 43000 | Q12: 1
D13: Coordinateur De Projet | E13: =R6 -> 258491.21 | F13: 30000 | G13: 30000 | H13: 258491.21 | I13: 23264.21 | J13: 295227 | K13: 92327 | L13: 1500 | M13: 90827 | N13: 204400 | Q13: 1
D14: Assistante de direction | E14: =R7 -> 43952.75 | F14: 7500 | G14: 7500 | H14: 43952.75 | I14: 3955.75 | J14: 54997 | K14: 11497 | L14: 1500 | M14: 9997 | N14: 45000 | Q14: 1
E19: Montant n’excédant pas 10 000.00 le taux est de 0%
E20: Montant de 10 000.01 à 30 000.00 le taux est de 20%
E21: Montant de 30 000.01 à 120 000.00 le taux est de 30%
E22: Montant supérieur a 120 000.00 le taux est de 35%
E24: Exemple pour une base imposable de 38 000.00 le calcule sera de
E25: Fraction Différence Taux IRG
E26: De 0 à 10 000.00 10 000.00 0% 0 Da
E27: De 10 000.01 à 30 000.00 30 000.00 20% 4 000.00 Da
E28: De 30 000.01 à 38 000.00 8 000.00 30% 2 400.00 Da
E29: Total cumule 6 400.00 Da
E30: Abattement 1 500.00 Da
E31: Retenu IRG 4 900.00 Da
E32: L’abattement se calcule comme suite SI(Base imposable*40%<1000;1000;SI(Base imposable *40%>1500;1500; Base imposable *40%))

Sheet (38) original
A1: MATRICULE | B1: NOM | C1: PRENOM | D1: FONCTION | E1: SALAIRE DE BASE | F1: PANIER | G1: TRANSPORT | H1: SALAIRE DE POSTE | I1: RETENUE SS | J1: SALAIRE IMPOSABLE | K1: IRG | L1: SALAIRE NET | M1: augmentation | N1: nouveau salaire | O1: %IRG
A2: 00007 | B2: SALAIER 1 | C2: NABIL | D2: SUPPORT MERCHANDISER | E2: 39401.1 | F2: 6000 | G2: 6000 | H2: =+E2 -> 39401.1 | I2: =+H2*0.09 -> 3546.099 | J2: =+H2-I2+F2+G2 -> 47855.001 | K2: =(IF(ROUNDDOWN((J2/O2)/10,0)*10>15000,(IF(ROUNDDOWN((J2/O2)/10,0)*10<22500,(ROUNDDOWN((J2/O2)/10,0)*10-15000)*20%,IF(ROUNDDOWN((J2/O2)/10,0)*10<28750,(((ROUNDDOWN((J2/O2)/10,0)*10-22500)*12%)+1500),IF(ROUNDDOWN((J2/O2)/10,0)*10<30000,(((ROUNDDOWN((J2/O2)/10,0)*10-28750)*20%)+22500),IF(ROUNDDOWN((J2/O2)/10,0)*10<120000,(((ROUNDDOWN((J2/O2)/10,0)*10-30000)*30%)+2500),(((ROUNDDOWN((J2/O2)/10,0)*10-120000)*35%)+29500)))))),0))*O2 -> 7855 | L2: =H2-I2-K2+F2+G2 -> 40000.001 | M2: 5000 | N2: 45000.001 | O2: 1
A3: 00033 | B3: SALAIER 2 | C3: MOHAMED AMINE | D3: Responsable Marketing | E3: 181735.71 | F3: 23078 | G3: 23078 | H3: 181735.71 | I3: 16356.2139 | J3: 211535.4961 | K3: 61535.5 | L3: 149999.9961 | M3: 7000 | N3: 156999.9961 | O3: 1
A4: 00035 | B4: SALAIER 3 | C4: NESRINE SOUHILA | D4: Assistante SAV | E4: 39401.1 | F4: 6000 | G4: 6000 | H4: 39401.1 | I4: 3546.099 | J4: 47855.001 | K4: 7855 | L4: 40000.001 | M4: 4500 | N4: 44500.001 | O4: 1
A5: 00037 | B5: SALAIER 4 | C5: ADEL AMAR | D5: Magasinier | E5: 39401.1 | F5: 6000 | G5: 6000 | H5: 39401.1 | I5: 3546.099 | J5: 47855.001 | K5: 7855 | L5: 40000.001 | M5: 3000 | N5: 43000.001 | O5: 1
A6: 00041 | B6: SALAIER 5 | C6: AHMED | D6: Coordinateur De Projet | E6: 251052.2 | F6: 30000 | G6: 30000 | H6: 251052.2 | I6: 22594.698 | J6: 288457.502 | K6: 88457.5 | L6: 200000.002 | M6: 4400 | N6: 204400.002 | O6: 1
A7: 00048 | B7: SALAIER 6 | C7: SALMA | D7: Assistante de direction | E7: 36104.4 | F7: 7500 | G7: 7500 | H7: 36104.4 | I7: 3249.396 | J7: 47855.004 | K7: 7855 | L7: 40000.004 | M7: 5000 | N7: 45000.004 | O7: 1
